Department Family,Entity,Date,Expense Type,Expense Area,Supplier,Trans no,Amount,,,print ?
DCMS,Tate Gallery,17/01/18,Electricity,Estates (FM) Management,(DIRECT DEBIT ONLY)  EDF Energy Limited,10293410,"62,055.84 ",,,print
DCMS,Tate Gallery,17/01/18,Electricity,Estates (FM) Management,(DIRECT DEBIT ONLY)  EDF Energy Limited,10293414,"118,264.39 ",,,print
DCMS,Tate Gallery,17/01/18,Electricity,Estates (FM) Management,(DIRECT DEBIT ONLY)  EDF Energy Limited,10293442,"63,446.07 ",,,print
DCMS,Tate Gallery,17/01/18,Electricity,Estates (FM) Management,(DIRECT DEBIT ONLY)  EDF Energy Limited,10293449,"51,787.36 ",,,print
DCMS,Tate Gallery,17/01/18,Electricity,Estates (FM) Management,(DIRECT DEBIT ONLY)  EDF Energy Limited,10293449,"70,405.58 ",,,print
DCMS,Tate Gallery,31/01/18,Advertising,Communications,AKA Promotions Ltd,10291536,"34,312.50 ",,,print
DCMS,Tate Gallery,31/01/18,Advertising,Communications,AKA Promotions Ltd,10291536,34.31 ,,,print
DCMS,Tate Gallery,31/01/18,Advertising,Communications,AKA Promotions Ltd,10292663,"25,500.00 ",,,print
DCMS,Tate Gallery,31/01/18,Advertising,Communications,AKA Promotions Ltd,10292663,25.50 ,,,print
DCMS,Tate Gallery,09/01/18,Software maintenance,Information Systems,Blackbaud Europe Ltd,10293156,"33,678.22 ",,,print
DCMS,Tate Gallery,09/01/18,Agency staff,Information Systems,Department of Help Ltd,10293159,"33,000.00 ",,,print
DCMS,Tate Gallery,31/01/18,Software maintenance,Information Systems,Gallery Systems Inc,10293838,"34,650.00 ",,,print
DCMS,Tate Gallery,25/01/18,Minor new works,Capital Projects,KGB Cleaning & Support Sevices Ltd,10293571,"29,176.21 ",,,print
DCMS,Tate Gallery,30/01/18,Cleaning - Contracts,Estates (FM) Management,KGB Cleaning & Support Sevices Ltd,10293851,"29,176.21 ",,,print
DCMS,Tate Gallery,30/01/18,Cleaning - Contracts,External Storage Facility,KGB Cleaning & Support Sevices Ltd,10293852,"29,176.21 ",,,print
DCMS,Tate Gallery,22/01/18,Software maintenance,Information Systems,Microsoft Ireland Operations Ltd,10293739,"26,630.40 ",,,print
DCMS,Tate Gallery,22/01/18,Hardware maintenance,Information Systems,Microsoft Ltd,10293737,"40,056.90 ",,,print
DCMS,Tate Gallery,30/01/18,Multimedia Content Development,Tate Digital,Preloaded Ltd,10291111,"25,000.00 ",,,print
DCMS,Tate Gallery,30/01/18,Multimedia Content Development,Tate Digital,Preloaded Ltd,10293157,"30,400.00 ",,,print
DCMS,Tate Gallery,10/01/18,Agency staff,Visitor Experience & Operations,Securitas Security Services UK Limited,10292592,"38,447.72 ",,,print
DCMS,Tate Gallery,26/01/18,Inst - Striking & Installation,Exhibitions & Displays,Setsquare Staging Limited,10293586,"25,577.00 ",,,print
DCMS,Tate Gallery,16/01/18,Minor new works,Estates (FM) Management,SPIE Matthew Hall Ltd,10293382,"25,767.69 ",,,print
DCMS,Tate Gallery,22/01/18,Facilities Management contract,Site Costs,SPIE Matthew Hall Ltd,10293575,"16,983.10 ",,,print
DCMS,Tate Gallery,22/01/18,Facilities Management contract,Estates (FM) Management,SPIE Matthew Hall Ltd,10293575,"96,418.82 ",,,print
DCMS,Tate Gallery,22/01/18,Facilities Management contract,Estates (FM) Management,SPIE Matthew Hall Ltd,10293575,"154,237.81 ",,,print
DCMS,Tate Gallery,23/01/18,Repairs,Estates (FM) Management,SPIE Matthew Hall Ltd,10293826,"26,950.87 ",,,print
DCMS,Tate Gallery,09/01/18,Tate Events (free),Development - Advocacy & Events,Tate Catering,10289490,"38,743.00 ",,,print
DCMS,Tate Gallery,24/01/18,Tate Events (free),Development - Advocacy & Events,Tate Catering,10293440,"38,743.00 ",,,print
DCMS,Tate Gallery,31/01/18,Print general,Members Fulfillment,The Big Push Ltd,10292476,"25,060.00 ",,,print
DCMS,Tate Gallery,31/01/18,Print general,Members Fulfillment,The Big Push Ltd,10293123,"42,857.00 ",,,print
DCMS,Tate Gallery,29/01/18,Research & development,IS Strategy Group,The DataShed,10293945,"28,370.35 ",,,print
DCMS,Tate Gallery,31/01/18,Org - Fees,Exhibitions & Displays,Turner Prize,10292987,"25,000.00 ",,,print
DCMS,Tate Gallery,18/01/18,Org - Duplicates/fabrication of work,Exhibitions & Displays,West One UK Ltd,10293650,"131,899.40 ",,,print
DCMS,Tate Gallery,17/01/18,Site security - Contracts,"Sites, Security and Services",Wilson James Ltd,10293083,"29,120.34 ",,,print
DCMS,Tate Gallery,17/01/18,Site security - Contracts,"Sites, Security and Services",Wilson James Ltd,10293083,"218,593.95 ",,,print
DCMS,Tate Gallery,17/01/18,Site security - Contracts,"Sites, Security and Services",Wilson James Ltd,10293083,"113,215.61 ",,,print
DCMS,Tate Gallery,11/01/18,Security,"Sites, Security and Services",Wilson James Ltd,10293384,"44,345.30 ",,,print
